fUST/lending_fUST_20250822
["ID","MTS","AMOUNT","RATE_DAILY","PERIOD"]
[380588168,1755814247435,-376.00439007,0.00022191,3]
[380588170,1755814247444,-160.0,0.00022191,3]
[380588171,1755814247454,-480.0,0.00022191,3]
[380588173,1755814247463,-1777.19,0.00022191,3]
[380588175,1755814247472,-780.35,0.00022191,3]
[380588177,1755814247481,-618.37,0.00022191,3]
[380588179,1755814247490,-888.0,0.00022191,3]
[380588181,1755814247500,-480.0,0.00022191,3]
[380588183,1755814247509,-604.06,0.00022191,3]
[380588185,1755814247519,-480.0,0.00022191,3]
[380588187,1755814247528,-526.43,0.00022191,3]
[380588189,1755814247538,-480.0,0.00022191,3]
[380588191,1755814247547,-480.0,0.00022191,3]
[380588193,1755814247556,-480.0,0.00022191,3]
[380588195,1755814247565,-552.890734,0.00022191,7]
[380588197,1755814247575,-552.890734,0.00022191,7]
[380588199,1755814247596,-552.890734,0.00022191,7]
[380588201,1755814247616,-552.890734,0.00022191,7]
[380588203,1755814247625,-627.0,0.00022192,2]
[380588205,1755814247634,-460.339,0.00022342,2]
[380588207,1755814247644,-500.0,0.00022373,2]
[380588209,1755814247653,-500.0,0.00022373,2]
[380588211,1755814247663,-500.0,0.0002245,2]
[380588213,1755814247672,-500.0,0.0002245,2]
[380588215,1755814247682,-500.0,0.0002245,2]
[380588217,1755814247691,-151.0,0.0002245,7]
[380588219,1755814247701,-151.0,0.0002245,7]
[380588221,1755814247711,-151.0,0.0002245,7]
[380588223,1755814247720,-151.0,0.0002245,7]
[380588225,1755814247730,-168.347313,0.0002245,7]
[380588227,1755814247739,-151.0,0.0002245,7]
[380588229,1755814247748,-168.347313,0.0002245,7]
[380588231,1755814247757,-151.0,0.0002245,7]
[380588233,1755814247766,-168.347313,0.0002245,7]
[380588234,1755814247775,-151.0,0.0002245,7]
[380588236,1755814247784,-168.347313,0.0002245,7]
[380588238,1755814247798,-152.778142,0.0002245,7]
[380588240,1755814247808,-480.0,0.00022464,3]
[380588242,1755814247818,-624.61354551,0.00022464,3]
[380588244,1755814247828,-701.76,0.00022464,3]
[380588246,1755814247838,-719.35,0.00022464,3]
[380588248,1755814247848,-460.45046932,0.00022465,3]
[380588250,1755814247858,-480.0,0.00022465,3]
[380588252,1755814247870,-196.55,0.00022465,3]
[380588254,1755814247879,-480.0,0.00022465,3]
[380588256,1755814247889,-480.0,0.00022465,3]
[380588258,1755814247900,-2016.9,0.00022465,3]
[380588260,1755814247909,-480.0,0.00022465,3]
[380588262,1755814247919,-215.86710461,0.00022465,3]
[380588264,1755814247930,-1112.85,0.00022465,3]
[380588266,1755814247939,-160.0,0.00022465,3]
[380588268,1755814247948,-269.29039786,0.00022465,3]
[380588270,1755814247958,-1777.19,0.00022465,3]
[380588272,1755814247967,-780.35,0.00022465,3]
[380588274,1755814247976,-618.37,0.00022465,3]
[380588276,1755814247986,-888.0,0.00022465,3]
[380588278,1755814247995,-480.0,0.00022465,3]
[380588280,1755814248004,-604.06,0.00022465,3]
[380588282,1755814248014,-560.29,0.00022465,3]
[380588284,1755814248023,-526.43,0.00022465,3]
[380588286,1755814248032,-480.0,0.00022465,3]
[380588288,1755814248043,-480.0,0.00022465,3]
[380588290,1755814248052,-480.0,0.00022465,3]
[380588292,1755814248061,-627.0,0.00022466,2]
[380588294,1755814248071,-151.0,0.00022483,7]
[380588296,1755814248080,-151.0,0.00022483,7]
[380588298,1755814248089,-151.0,0.00022483,7]
[380588300,1755814248099,-151.0,0.00022483,7]
[380588302,1755814248108,-151.0,0.00022483,7]
[380588304,1755814248118,-526.071452,0.00022483,7]
[380588306,1755814248128,-526.071452,0.00022483,7]
[380588308,1755814248137,-151.897024,0.00022483,7]
[380588310,1755814248147,-151.897024,0.00022483,7]
[380588312,1755814248156,-526.071452,0.00022483,7]
[380588314,1755814248165,-151.0,0.00022483,7]
[380588316,1755814248174,-151.897024,0.00022483,7]
[380588317,1755814248184,-526.071452,0.00022483,7]
[380588319,1755814248193,-151.897024,0.00022483,7]
[380588321,1755814248202,-151.0,0.00022483,7]
[380588323,1755814248211,-998.80143827,0.00022487,2]
[380588325,1755814248221,-151.0,0.000225,6]
[380588327,1755814248230,-3000.0,0.00022618,2]
[380588329,1755814248240,-3000.0,0.00022618,2]
[380588331,1755814248249,-151.0,0.00022618,7]
[380588333,1755814248258,-172.351863,0.00022618,7]
[380588335,1755814248268,-151.0,0.00022618,7]
[380588337,1755814248278,-172.351863,0.00022618,7]
[380588338,1755814248287,-151.0,0.00022618,7]
[380588339,1755814248296,-172.351863,0.00022618,7]
[380588340,1755814248306,-151.0,0.00022618,7]
[380588341,1755814248315,-172.351863,0.00022618,7]
[380588342,1755814248324,-156.309803,0.00022618,7]
[380588343,1755814248334,-460.0,0.00022644,2]
[380588344,1755814248343,-500.0,0.00022705,2]
[380588345,1755814248352,-644.85667029,0.00022705,2]
[380588346,1755814248362,-199.39167372,0.00022705,2]
[380588347,1755814248371,-644.85667029,0.00022705,2]
[380588348,1755814248380,-644.85667029,0.00022705,2]
[380588349,1755814248390,-644.85667029,0.00022705,2]
[380588350,1755814248399,-644.85667029,0.00022705,2]
[380588351,1755814248409,-644.85667029,0.00022705,2]
[380588352,1755814248418,-644.85667029,0.00022705,2]
[380588354,1755814248427,-644.85667029,0.00022705,2]
[380588356,1755814248436,-644.85667029,0.00022705,2]
[380588358,1755814248445,-644.85667029,0.00022705,2]
[380588360,1755814248455,-6813.36811788,0.00022706,2]
[380588362,1755814248464,-1000.0,0.00022708,2]
[380588364,1755814248473,-500.0,0.00022727,2]
[380588366,1755814248483,-392.04,0.00022738,3]
[380588368,1755814248493,-701.76,0.00022738,3]
[380588370,1755814248502,-12690.45384448,0.00022738,3]
[380588372,1755814248511,-719.35,0.00022738,3]
[380588374,1755814248521,-480.0,0.00022739,3]
[380588376,1755814248530,-480.0,0.00022739,3]
[380588378,1755814248540,-151.0,0.00022739,7]
[380588380,1755814248550,-151.0,0.00022739,7]
[380588382,1755814248559,-151.0,0.00022739,7]
[380588384,1755814248568,-151.0,0.00022739,7]
[380588386,1755814248578,-151.0,0.00022739,7]
[380588388,1755814248587,-12690.45384448,0.00022739,7]
[380588390,1755814248596,-151.0,0.00022739,7]
[380588392,1755814248606,-151.0,0.00022739,7]
[380588394,1755814248615,-151.0,0.00022739,7]
[380588396,1755814248624,-151.0,0.00022739,7]
[380588398,1755814248633,-151.0,0.00022739,7]
[380588400,1755814248643,-151.0,0.00022739,7]
[380588402,1755814248652,-480.0,0.00022739,3]
[380588403,1755814248661,-151.0,0.00022739,7]
[380588405,1755814248671,-2016.9,0.00022739,3]
[380588407,1755814248680,-151.0,0.00022739,7]
[380588409,1755814248689,-151.0,0.00022739,7]
[380588411,1755814248698,-151.0,0.00022739,7]
[380588413,1755814248707,-215.86710461,0.00022739,7]
[380588415,1755814248717,-480.0,0.00022739,3]
[380588418,1755814248726,-1112.85,0.00022739,3]
[380588419,1755814248736,-376.00439007,0.00022739,7]
[380588421,1755814248746,-160.0,0.00022739,7]
[380588423,1755814248755,-1777.19,0.00022739,3]
[380588425,1755814248764,-780.35,0.00022739,3]
[380588427,1755814248774,-618.37,0.00022739,3]
[380588429,1755814248784,-888.0,0.00022739,3]
[380588431,1755814248797,-480.0,0.00022739,3]
[380588433,1755814248806,-604.06,0.00022739,3]
[380588435,1755814248815,-526.43,0.00022739,3]
[380588437,1755814248825,-480.0,0.00022739,3]
[380588439,1755814248834,-480.0,0.00022739,3]
[380588441,1755814248845,-480.0,0.00022739,3]
[380588443,1755814248855,-627.0,0.0002274,2]
[380588445,1755814248864,-500.0,0.00022773,2]
[380588447,1755814248873,-500.0,0.00022773,2]
[380588449,1755814248883,-500.0,0.00022773,2]
[380588451,1755814248892,-500.0,0.00022773,2]
[380588453,1755814248901,-500.0,0.00022773,2]
[380588455,1755814248910,-500.0,0.00022773,2]
[380588457,1755814248920,-500.0,0.00022773,2]
[380588459,1755814248929,-500.0,0.00022773,2]
[380588461,1755814248938,-505.64626977,0.00022773,2]
[380588463,1755814248948,-508.92533935,0.00022773,2]
[380588465,1755814248957,-500.0,0.00022773,2]
[380588467,1755814248967,-500.0,0.00022773,2]
[380588469,1755814248976,-587.0,0.00022776,2]
[380588471,1755814248986,-776.88720845,0.00022779,2]
[380588473,1755814248996,-151.0,0.000229,9]
[380588475,1755814249006,-1110.27141104,0.00022921,2]
[380588478,1755814249015,-668.0139822,0.00022921,2]
[380588480,1755814249025,-160.0,0.00022955,3]
[380588481,1755814249034,-2351.0,0.00022997,2]
[380588483,1755814249044,-1000.0,0.00022998,2]
[380588485,1755814249053,-306.23479692,0.00022998,2]
[380588487,1755814249063,-1000.0,0.00022998,2]
[380588490,1755814249073,-160.0,0.00023,2]
[380588492,1755814249082,-844.19128999,0.00023,3]
[380588494,1755814249092,-216.95272161,0.00023,3]
[380588496,1755814249101,-151.0,0.00023003,2]
[380588498,1755814249110,-151.0,0.00023012,7]
[380588500,1755814249119,-293.269847,0.00023012,7]
[380588502,1755814249128,-701.76,0.00023012,3]
[380588504,1755814249138,-719.35,0.00023012,3]
[380588506,1755814249147,-480.0,0.00023013,3]
[380588508,1755814249158,-151.0,0.00023013,7]
[380588510,1755814249167,-151.0,0.00023013,7]
[380588512,1755814249176,-194.994437,0.00023013,7]
[380588514,1755814249185,-480.0,0.00023013,3]
[380588516,1755814249195,-480.0,0.00023013,3]
[380588518,1755814249204,-2016.9,0.00023013,3]
[380588520,1755814249214,-480.0,0.00023013,3]
[380588522,1755814249223,-1112.85,0.00023013,3]
[380588524,1755814249233,-1777.19,0.00023013,3]
[380588526,1755814249242,-780.35,0.00023013,3]
[380588528,1755814249251,-618.37,0.00023013,3]
[380588530,1755814249261,-888.0,0.00023013,3]
[380588531,1755814249270,-486.77465493,0.00023013,3]
[380588534,1755814249280,-604.06,0.00023013,3]
[380588535,1755814249289,-526.43,0.00023013,3]
[380588538,1755814249298,-480.0,0.00023013,3]
[380588539,1755814249307,-480.0,0.00023013,3]
[380588541,1755814249316,-480.0,0.00023013,3]
[380588543,1755814249326,-165.0,0.00023014,7]
[380588545,1755814249335,-627.0,0.00023014,2]
[380588547,1755814249344,-150.0,0.00023029,2]
[380588549,1755814249353,-150.0,0.00023029,2]
[380588551,1755814249362,-218.986,0.00023029,2]
[380588553,1755814249372,-973.0,0.00023029,2]
[380588555,1755814249386,-637.0,0.00023029,2]
[380588557,1755814249398,-2154.0,0.00023029,2]
[380588559,1755814249407,-151.0,0.00023029,7]
[380588561,1755814249416,-151.0,0.00023029,7]
[380588563,1755814249426,-151.0,0.00023029,7]
[380588565,1755814249436,-151.0,0.00023029,7]
[380588567,1755814249445,-151.0,0.00023029,7]
[380588569,1755814249454,-151.0,0.00023029,7]
[380588571,1755814249464,-151.0,0.00023029,7]
[380588573,1755814249473,-991.29427584,0.00023165,2]
[380588575,1755814249482,-1000.0,0.00023165,2]
[380588577,1755814249492,-560.0,0.00023192,2]
[380588579,1755814249501,-552.890734,0.00023275,7]
[380588582,1755814249511,-552.890734,0.00023275,7]
[380588584,1755814249521,-552.890734,0.00023275,7]
[380588586,1755814249530,-552.890734,0.00023275,7]
[380588588,1755814249540,-701.76,0.00023286,3]
[380588590,1755814249549,-719.35,0.00023286,3]
[380588592,1755814249559,-480.0,0.00023287,3]
[380588594,1755814249569,-480.0,0.00023287,3]
[380588596,1755814249578,-480.0,0.00023287,3]
[380588597,1755814249588,-2016.9,0.00023287,3]
[380588599,1755814249597,-480.0,0.00023287,3]
[380588601,1755814249607,-1112.85,0.00023287,3]
[380588603,1755814249616,-1777.19,0.00023287,3]
[380588617,1755814249745,-780.35,0.00023287,3]
[380588619,1755814249755,-618.37,0.00023287,3]
[380588621,1755814249765,-888.0,0.00023287,3]
[380588623,1755814249774,-604.06,0.00023287,3]
[380588625,1755814249784,-526.43,0.00023287,3]
[380588627,1755814249797,-151.0,0.00023287,7]
[380588629,1755814249807,-151.0,0.00023287,7]
[380588631,1755814249817,-151.0,0.00023287,7]
[380588633,1755814249826,-168.347313,0.00023287,7]
[380588635,1755814249838,-151.0,0.00023287,7]
[380588637,1755814249847,-168.347313,0.00023287,7]
[380588639,1755814249856,-151.0,0.00023287,7]
[380588641,1755814249866,-168.347313,0.00023287,7]
[380588643,1755814249876,-155.826023,0.00023287,7]
[380588645,1755814249886,-480.0,0.00023287,3]
[380588647,1755814249896,-168.347313,0.00023287,7]
[380588649,1755814249905,-463.26,0.00023287,3]
[380588651,1755814249914,-480.0,0.00023287,3]
[380588653,1755814249924,-627.0,0.00023288,2]
[380588655,1755814249933,-500.0,0.00023321,2]
[380588657,1755814249942,-1000.0,0.00023321,2]
[380588659,1755814249951,-551.83599481,0.00023321,2]
[380588661,1755814249961,-500.0,0.00023321,2]
[380588663,1755814249970,-271.79791669,0.00023321,2]
[380588665,1755814249980,-1000.0,0.00023321,2]
[380588667,1755814249989,-1000.0,0.00023321,2]
[380588669,1755814249998,-151.0,0.000234,7]
[380588671,1755814250008,-2200.0,0.00023452,2]
[380588674,1755814250017,-500.0,0.00023546,2]
[380588675,1755814250026,-701.76,0.0002356,3]
[380588677,1755814250036,-719.35,0.0002356,3]
[380588679,1755814250046,-480.0,0.00023561,3]
[380588681,1755814250055,-480.0,0.00023561,3]
[380588683,1755814250064,-387.48462555,0.00023561,3]
[380588685,1755814250074,-2016.9,0.00023561,3]
[380588687,1755814250083,-480.0,0.00023561,3]
[380588690,1755814250093,-1112.85,0.00023561,3]
[380588692,1755814250102,-1777.19,0.00023561,3]
[380588694,1755814250111,-780.35,0.00023561,3]
[380588696,1755814250121,-618.37,0.00023561,3]
[380588697,1755814250130,-888.0,0.00023561,3]
[380588700,1755814250139,-604.06,0.00023561,3]
[380588702,1755814250149,-526.43,0.00023561,3]
[380588703,1755814250158,-480.0,0.00023561,3]
[380588705,1755814250167,-480.0,0.00023561,3]
[380588708,1755814250177,-627.0,0.00023562,2]
[380588709,1755814250186,-2276.2,0.000236,7]
[380588712,1755814250196,-407.73,0.000236,7]
[380588713,1755814250205,-5074.39,0.000236,7]
[380588716,1755814250215,-151.0,0.000236,7]
[380588717,1755814250224,-151.0,0.000236,7]
[380588720,1755814250234,-151.0,0.000236,7]
[380588722,1755814250243,-151.0,0.000236,7]
[380588724,1755814250252,-151.0,0.000236,7]
[380588726,1755814250261,-151.0,0.000236,7]
[380588728,1755814250271,-151.0,0.000236,7]
[380588730,1755814250282,-172.351863,0.000236,7]
[380588732,1755814250303,-151.0,0.000236,7]
[380588734,1755814250316,-172.351863,0.000236,7]
[380588736,1755814250325,-151.0,0.000236,7]
[380588738,1755814250335,-172.351863,0.000236,7]
[380588740,1755814250344,-151.0,0.000236,7]
[380588742,1755814250354,-172.351863,0.000236,7]
[380588744,1755814250363,-151.0,0.00023667,7]
[380588746,1755814250372,-151.0,0.00023667,7]
[380588748,1755814250381,-151.0,0.00023667,7]
[380588750,1755814250391,-526.071452,0.00023667,7]
[380588751,1755814250401,-526.071452,0.00023667,7]
[380588754,1755814250411,-151.897024,0.00023667,7]
[380588755,1755814250420,-151.897024,0.00023667,7]
[380588757,1755814250430,-526.071452,0.00023667,7]
[380588759,1755814250439,-526.071452,0.00023667,7]
[380588761,1755814250449,-151.897024,0.00023667,7]
[380588763,1755814250458,-151.897024,0.00023667,7]
[380588765,1755814250467,-151.0,0.00023667,7]
[380588768,1755814250479,-660.0,0.0002374,2]
[380588770,1755814250488,-6299.68343825,0.00023758,2]
[380588771,1755814250498,-1453.0631208,0.0002377,2]
[380588774,1755814250507,-776.88720845,0.0002379,2]
[380588776,1755814250516,-1453.0631208,0.00023792,2]
[380588777,1755814250526,-1000.0,0.00023804,2]
[380588780,1755814250536,-701.76,0.00023834,3]
[380588782,1755814250546,-719.35,0.00023834,3]
[380588784,1755814250555,-151.0,0.00023835,7]
[380588786,1755814250565,-151.0,0.00023835,7]
[380588788,1755814250575,-151.0,0.00023835,7]
[380588790,1755814250585,-151.0,0.00023835,7]
[380588792,1755814250594,-151.0,0.00023835,7]
[380588793,1755814250603,-151.0,0.00023835,7]
[380588795,1755814250612,-480.0,0.00023835,3]
[380588797,1755814250622,-259.95783574,0.00023835,3]
[380588799,1755814250631,-2016.9,0.00023835,3]
[380588801,1755814250640,-480.0,0.00023835,3]
[380588803,1755814250650,-1112.85,0.00023835,3]
[380588805,1755814250660,-6933.28964712,0.00023835,2]
[380588807,1755814250669,-1777.19,0.00023835,3]
[380588809,1755814250679,-780.35,0.00023835,3]
[380588811,1755814250689,-618.37,0.00023835,3]
[380588813,1755814250699,-888.0,0.00023835,3]
[380588815,1755814250709,-604.06,0.00023835,3]
[380588817,1755814250718,-526.43,0.00023835,3]
[380588819,1755814250727,-480.0,0.00023835,3]
[380588821,1755814250737,-480.0,0.00023835,3]
[380588823,1755814250746,-627.0,0.00023836,2]
[380588825,1755814250755,-1000.0,0.00023868,2]
[380588827,1755814250764,-1500.0,0.00023868,2]
[380588829,1755814250773,-321.685964,0.0002389,2]
[380588831,1755814250783,-151.0,0.000239,9]
[380588833,1755814250796,-844.19128999,0.00024,7]
[380588835,1755814250806,-160.0,0.00024046,4]
[380588837,1755814250816,-701.76,0.00024108,3]
[380588839,1755814250826,-719.35,0.00024108,3]
[380588841,1755814250836,-480.0,0.00024109,3]
[380588843,1755814250846,-151.0,0.00024109,7]
[380588845,1755814250856,-151.0,0.00024109,7]
[380588847,1755814250866,-179.595668,0.00024109,7]
[380588849,1755814250877,-151.0,0.00024109,7]
[380588851,1755814250888,-151.0,0.00024109,7]
[380588853,1755814250897,-151.0,0.00024109,7]
[380588855,1755814250906,-151.0,0.00024109,7]
[380588857,1755814250916,-151.0,0.00024109,7]
[380588859,1755814250925,-151.0,0.00024109,7]
[380588861,1755814250934,-151.0,0.00024109,7]
[380588863,1755814250944,-151.0,0.00024109,7]
[380588865,1755814250953,-2016.9,0.00024109,3]
[380588867,1755814250963,-151.0,0.00024109,7]
[380588869,1755814250973,-151.0,0.00024109,7]
[380588871,1755814250982,-151.0,0.00024109,7]
[380588873,1755814250991,-8748.7,0.00024109,4]
[380588875,1755814251001,-480.0,0.00024109,3]
[380588877,1755814251011,-1112.85,0.00024109,3]
[380588879,1755814251021,-1777.19,0.00024109,3]
[380588881,1755814251031,-780.35,0.00024109,3]
[380588883,1755814251041,-618.37,0.00024109,3]
[380588885,1755814251051,-888.0,0.00024109,3]
[380588887,1755814251060,-604.06,0.00024109,3]
[380588889,1755814251069,-526.43,0.00024109,3]
[380588891,1755814251078,-480.0,0.00024109,3]
[380588893,1755814251087,-199.18,0.00024109,3]
[380588895,1755814251097,-627.0,0.0002411,2]
[380588896,1755814251106,-12152.07809493,0.0002411,7]
[380588898,1755814251115,-215.86710461,0.0002411,7]
[380588901,1755814251125,-160.0,0.0002411,7]
[380588903,1755814251134,-2818.33680489,0.00024152,2]
[380588905,1755814251144,-168.0,0.00024219,2]
[380588906,1755814251154,-237.0,0.0002422,7]
[380588909,1755814251163,-154.761002,0.00024276,3]
[380588910,1755814251172,-760.0,0.00024288,2]
[380588912,1755814251182,-154.761002,0.000243,6]
[380588914,1755814251191,-237.0,0.00024369,2]
[380588916,1755814251200,-151.0,0.00024372,2]
[380588919,1755814251211,-151.854492,0.00024382,7]
[380588920,1755814251221,-701.76,0.00024382,3]
[380588922,1755814251230,-719.35,0.00024382,3]
[380588924,1755814251240,-408.35229057,0.00024383,3]
[380588926,1755814251249,-2016.9,0.00024383,3]
[380588928,1755814251258,-480.0,0.00024383,3]
[380588930,1755814251267,-1112.85,0.00024383,3]
[380588932,1755814251277,-1777.19,0.00024383,3]
[380588934,1755814251286,-780.35,0.00024383,3]
[380588936,1755814251295,-888.0,0.00024383,3]
[380588938,1755814251305,-618.37,0.00024383,3]
[380588940,1755814251314,-604.06,0.00024383,3]
[380588942,1755814251323,-526.43,0.00024383,3]
[380588944,1755814251333,-480.0,0.00024383,3]
[380588946,1755814251343,-627.0,0.00024384,2]
[380588948,1755814251353,-151.0,0.00024384,7]
[380588950,1755814251363,-151.0,0.000244,10]
[380588952,1755814251372,-154.761002,0.000244,6]
[380588954,1755814251390,-500.0,0.00024408,2]
[380588956,1755814251402,-500.0,0.00024408,2]
[380588958,1755814251412,-500.0,0.00024408,2]
[380588960,1755814251422,-2000.0,0.00024416,2]
[380588962,1755814251434,-151.0,0.00024424,7]
[380588964,1755814251443,-151.0,0.00024424,7]
[380588966,1755814251453,-154.761002,0.000245,9]
[380588968,1755814251463,-495.65,0.000245,2]
[380588970,1755814251472,-166.55787747,0.00024503,7]
[380588972,1755814251482,-151.0,0.00024577,7]
[380588975,1755814251492,-151.0,0.00024577,7]
[380588977,1755814251502,-151.0,0.00024577,7]
[380588978,1755814251512,-151.0,0.00024577,7]
[380588980,1755814251521,-258.097144,0.00024577,7]
[380588983,1755814251531,-151.0,0.00024577,7]
[380588985,1755814251541,-552.890734,0.00024577,7]
[380588987,1755814251550,-552.890734,0.00024577,7]
[380588988,1755814251560,-552.890734,0.00024577,7]
[380588990,1755814251569,-552.890734,0.00024577,7]
[380588992,1755814251580,-6813.36811788,0.00024577,2]
[380588995,1755814251590,-645.0,0.000246,2]
[380588997,1755814251600,-237.0,0.00024622,2]
[380588999,1755814251609,-701.76,0.00024656,3]
[380589001,1755814251619,-719.35,0.00024656,3]
[380589003,1755814251628,-2016.9,0.00024657,3]
[380589005,1755814251638,-480.0,0.00024657,3]
[380589007,1755814251647,-1112.85,0.00024657,3]
[380589009,1755814251656,-1777.19,0.00024657,3]
[380589011,1755814251665,-780.35,0.00024657,3]
[380589012,1755814251675,-888.0,0.00024657,3]
[380589014,1755814251684,-618.37,0.00024657,3]
[380589016,1755814251694,-604.06,0.00024657,3]
[380589018,1755814251703,-526.43,0.00024657,3]
[380589021,1755814251714,-258.84433375,0.00024657,3]
[380589023,1755814251723,-627.0,0.00024658,2]
[380589025,1755814251733,-500.0,0.00024658,2]
[380589027,1755814251742,-377.9894012,0.00024712,2]
[380589029,1755814251751,-2276.2,0.000248,7]
[380589031,1755814251761,-407.73,0.000248,7]
[380589033,1755814251771,-5074.39,0.000248,7]
[380589035,1755814251780,-776.88720845,0.000248,2]
[380589037,1755814251793,-151.0,0.000248,7]
[380589039,1755814251802,-172.351863,0.000248,7]
[380589041,1755814251812,-151.0,0.000248,7]
[380589043,1755814251821,-172.351863,0.000248,7]
[380589045,1755814251831,-151.0,0.000248,7]
[380589047,1755814251841,-172.351863,0.000248,7]
[380589049,1755814251850,-172.351863,0.000248,7]
[380589050,1755814251859,-151.0,0.000248,7]
[380589052,1755814251870,-151.0,0.000248,7]
[380589054,1755814251880,-151.0,0.000248,7]
[380589056,1755814251889,-151.0,0.000248,7]
[380589058,1755814251898,-168.347313,0.000248,7]
[380589060,1755814251908,-151.0,0.000248,7]
[380589062,1755814251917,-168.347313,0.000248,7]
[380589064,1755814251927,-151.0,0.000248,7]
[380589066,1755814251936,-168.347313,0.000248,7]
[380589068,1755814251946,-168.347313,0.000248,7]
[380589070,1755814251956,-823.0,0.00024821,2]
[380589072,1755814251966,-12500.0,0.00024825,7]
[380589074,1755814251975,-860.0,0.00024836,2]
[380589076,1755814251984,-201.0,0.0002484,11]
[380589078,1755814251993,-500.0,0.00024873,2]
[380589081,1755814252003,-500.0,0.00024873,2]
[380589083,1755814252013,-500.0,0.00024873,2]
[380589085,1755814252023,-157.30603126,0.00024873,2]
[380589087,1755814252032,-150.0,0.00024873,2]
[380589089,1755814252042,-154.761002,0.0002488,3]
[380589090,1755814252051,-3403.33711588,0.000249,2]
[380589092,1755814252060,-207.0,0.000249,2]
[380589094,1755814252070,-232.28399145,0.000249,7]
[380589096,1755814252079,-155.0,0.000249,3]
[380589098,1755814252088,-326.0,0.000249,3]
[380589100,1755814252099,-326.0,0.000249,3]
[380589102,1755814252108,-326.0,0.000249,3]
[380589104,1755814252117,-46945.24,0.000249,2]
[380589106,1755814252126,-151.0,0.000249,7]
[380589108,1755814252135,-1000.0,0.000249,2]
[380589110,1755814252144,-178.290292,0.000249,7]
[380589112,1755814252153,-318.4688872,0.000249,2]
[380589114,1755814252162,-151.0,0.000249,7]
[380589116,1755814252172,-151.0,0.000249,7]
[380589118,1755814252182,-151.0,0.000249,7]
[380589120,1755814252191,-151.0,0.000249,7]
[380589122,1755814252201,-151.0,0.000249,7]
[380589124,1755814252210,-151.0,0.000249,7]
[380589126,1755814252220,-151.0,0.000249,7]
[380589128,1755814252229,-151.0,0.000249,7]
[380589130,1755814252238,-151.0,0.000249,7]
[380589132,1755814252248,-151.0,0.000249,7]
[380589134,1755814252258,-151.0,0.000249,7]
[380589137,1755814252267,-151.0,0.000249,7]
[380589138,1755814252277,-151.0,0.000249,7]
[380589141,1755814252286,-203.370422,0.000249,7]
[380589143,1755814252296,-151.0,0.000249,7]
[380589144,1755814252306,-151.0,0.000249,7]
[380589147,1755814252315,-151.0,0.000249,7]
[380589149,1755814252325,-151.0,0.000249,7]
[380589150,1755814252334,-151.0,0.000249,7]
[380589153,1755814252344,-151.0,0.000249,7]
[380589155,1755814252354,-276.903604,0.000249,7]
[380589156,1755814252363,-151.0,0.000249,7]
[380589158,1755814252372,-151.0,0.000249,7]